[Event "*** Titled Tuesday 3|2 Blitz"]
[Site "Chess.com"]
[Date "2015.12.01"]
[Round "5"]
[White "jcibarra"]
[Black "HustleStandard"]
[Result "1/2-1/2"]
[WhiteElo "2513"]
[BlackElo "2380"]
[TimeControl "180+2"]
[EndTime "18:06:13 PST"]
[Termination "Game drawn by agreement"]

1. e4 {[%clk 0:03:01.9]} 1... e5 {[%clk 0:02:51.3]} 2. Nf3 {[%clk 0:03:02.8]}
2... Nc6 {[%clk 0:02:52]} 3. Bb5 {[%clk 0:03:03.1]} 3... Nf6 {[%clk 0:02:53.5]}
4. O-O {[%clk 0:03:03.3]} 4... Nxe4 {[%clk 0:02:54.4]} 5. d4 {[%clk 0:03:04.2]}
5... Nd6 {[%clk 0:02:55.3]} 6. dxe5 {[%clk 0:03:05.3]} 6... Nxb5 {[%clk
0:02:56.2]} 7. a4 {[%clk 0:03:06.6]} 7... Nbd4 {[%clk 0:02:57.7]} 8. Nxd4 {[%clk
0:03:07.9]} 8... d5 {[%clk 0:02:59.1]} 9. Nxc6 {[%clk 0:02:51.8]} 9... bxc6
{[%clk 0:02:59.2]} 10. Nd2 {[%clk 0:02:50.5]} 10... Be7 {[%clk 0:02:42]} 11. Nb3
{[%clk 0:02:50.1]} 11... c5 {[%clk 0:02:42.6]} 12. Na5 {[%clk 0:02:50.2]} 12...
Be6 {[%clk 0:02:31.3]} 13. Nc6 {[%clk 0:02:49]} 13... Qd7 {[%clk 0:02:32.2]} 14.
Nxe7 {[%clk 0:02:50.4]} 14... Qxe7 {[%clk 0:02:34.1]} 15. b3 {[%clk 0:02:51.6]}
15... O-O {[%clk 0:02:32.4]} 16. Ba3 {[%clk 0:02:52.6]} 16... Rad8 {[%clk
0:02:16.4]} 17. Qd4 {[%clk 0:02:52]} 17... Qg5 {[%clk 0:01:54.9]} 18. Bxc5
{[%clk 0:02:31.9]} 18... Bh3 {[%clk 0:01:55.4]} 19. g3 {[%clk 0:02:32.5]} 19...
Bxf1 {[%clk 0:01:28.6]} 20. Bxf8 {[%clk 0:02:23.2]} 20... Bh3 {[%clk 0:01:24.7]}
21. Bc5 {[%clk 0:02:12.4]} 21... Qf5 {[%clk 0:01:26]} 22. Qd3 {[%clk 0:02:00.9]}
22... Qxe5 {[%clk 0:01:20.6]} 23. Bd4 {[%clk 0:02:01.6]} 23... Qe7 {[%clk
0:01:11.5]} 24. Qe3 {[%clk 0:01:46.8]} 24... Qxe3 {[%clk 0:00:58.2]} 25. fxe3
{[%clk 0:01:47.9]} 25... a6 {[%clk 0:00:58.1]} 26. b4 {[%clk 0:01:41.7]} 26...
Bf5 {[%clk 0:00:57.6]} 27. c3 {[%clk 0:01:43.1]} 27... c6 {[%clk 0:00:53.7]} 28.
Kf2 {[%clk 0:01:36]} 28... Bd3 {[%clk 0:00:52.3]} 29. g4 {[%clk 0:01:36.6]}
29... f6 {[%clk 0:00:51.2]} 30. Kg3 {[%clk 0:01:37.2]} 30... h6 {[%clk
0:00:51.5]} 31. Ra2 {[%clk 0:01:37.1]} 31... Kf7 {[%clk 0:00:52.1]} 32. h4
{[%clk 0:01:37.4]} 32... Re8 {[%clk 0:00:52.9]} 33. Rf2 {[%clk 0:01:36.8]} 33...
Re6 {[%clk 0:00:53.3]} 34. Rd2 {[%clk 0:01:35.6]} 34... Bc4 {[%clk 0:00:53.1]}
35. Rf2 {[%clk 0:01:35.7]} 35... Kg6 {[%clk 0:00:49.7]} 36. Rf5 {[%clk
0:01:31.5]} 36... Bb3 {[%clk 0:00:49.5]} 37. a5 {[%clk 0:01:32.3]} 37... Re4
{[%clk 0:00:49]} 38. Rf4 {[%clk 0:01:30.7]} 38... Re6 {[%clk 0:00:49.6]} 39. Kf2
{[%clk 0:01:28.3]} 39... Bc2 {[%clk 0:00:48.4]} 40. Kg3 {[%clk 0:01:29.4]} 40...
Bd1 {[%clk 0:00:48.4]} 41. Kh3 {[%clk 0:01:24.8]} 41... Bc2 {[%clk 0:00:45]} 42.
Kg3 {[%clk 0:01:25.9]} 42... Kf7 {[%clk 0:00:46.5]} 43. g5 {[%clk 0:01:26]}
43... f5 {[%clk 0:00:39.8]} 44. Rf2 {[%clk 0:01:20.7]} 44... hxg5 {[%clk
0:00:37.4]} 45. hxg5 {[%clk 0:01:21.8]} 45... Kg6 {[%clk 0:00:39]} 46. Rh2
{[%clk 0:01:20.8]} 46... Re7 {[%clk 0:00:30.4]} 47. Kf4 {[%clk 0:01:13]} 47...
Re4+ {[%clk 0:00:29.8]} 48. Kf3 {[%clk 0:01:14.2]} 48... Bd1+ {[%clk 0:00:30]}
49. Kf2 {[%clk 0:01:15]} 49... Bh5 {[%clk 0:00:29.8]} 50. Bxg7 {[%clk 0:01:09]}
50... Kxg5 {[%clk 0:00:20]} 51. Bd4 {[%clk 0:01:06.5]} 51... f4 {[%clk
0:00:16.9]} 52. exf4+ {[%clk 0:01:03.2]} 52... Rxf4+ {[%clk 0:00:18.8]} 53. Ke3
{[%clk 0:01:03.7]} 53... Re4+ {[%clk 0:00:19.6]} 54. Kd2 {[%clk 0:01:04.8]}
54... Bg4 {[%clk 0:00:20.5]} 55. Rf2 {[%clk 0:01:03.2]} 55... Re6 {[%clk
0:00:16.1]} 56. Rf7 {[%clk 0:00:59.9]} 56... Be2 {[%clk 0:00:16.3]} 57. Be3+
{[%clk 0:00:59]} 57... Kg6 {[%clk 0:00:15.6]} 58. Rb7 {[%clk 0:00:55.4]} 58...
Bb5 {[%clk 0:00:16.9]} 59. Bd4 {[%clk 0:00:56.3]} 59... Kf5 {[%clk 0:00:17.8]}
60. Rh7 {[%clk 0:00:54.9]} 60... Re2+ {[%clk 0:00:17.9]} 61. Kd1 {[%clk
0:00:56]} 61... Ke4 {[%clk 0:00:18.6]} 62. Re7+ {[%clk 0:00:56.2]} 62... Kf3
{[%clk 0:00:19]} 63. Rf7+ {[%clk 0:00:56.8]} 63... Kg4 {[%clk 0:00:19.1]} 64.
Rf6 {[%clk 0:00:56.3]} 64... Ra2 {[%clk 0:00:18.5]} 65. Kc1 {[%clk 0:00:56.9]}
65... Kg5 {[%clk 0:00:19.4]} 66. Rf8 {[%clk 0:00:56.6]} 66... Re2 {[%clk
0:00:19.8]} 67. Kd1 {[%clk 0:00:56.3]} 67... Rh2 {[%clk 0:00:19.2]} 68. Kc1
{[%clk 0:00:55.3]} 68... Rh1+ {[%clk 0:00:18.4]} 69. Kb2 {[%clk 0:00:56.1]}
69... Rh2+ {[%clk 0:00:19.8]} 70. Kc1 {[%clk 0:00:57.5]} 70... Rh1+ {[%clk
0:00:20.4]} 71. Kd2 {[%clk 0:00:59]} 71... Rh2+ {[%clk 0:00:21.3]} 72. Ke3
{[%clk 0:00:59.8]} 72... Re2+ {[%clk 0:00:21.7]} 73. Kf3 {[%clk 0:01:00.9]}
73... Re4 {[%clk 0:00:22.6]} 74. Kg3 {[%clk 0:00:58.2]} 74... Rg4+ {[%clk
0:00:21.3]} 75. Kf3 {[%clk 0:00:58.6]} 75... Re4 {[%clk 0:00:23.2]} 76. Rb8
{[%clk 0:00:56.3]} 76... Be2+ {[%clk 0:00:23.1]} 77. Kf2 {[%clk 0:00:56.9]}
77... Bc4 {[%clk 0:00:23.6]} 78. Rc8 {[%clk 0:00:55.2]} 78... Bb5 {[%clk
0:00:22.8]} 79. Rc7 {[%clk 0:00:56.1]} 79... Kg4 {[%clk 0:00:22.2]} 80. Rg7+
{[%clk 0:00:55.7]} 80... Kf4 {[%clk 0:00:23.4]} 81. Be3+ {[%clk 0:00:52.8]}
81... Ke5 {[%clk 0:00:16.9]} 82. Rg6 {[%clk 0:00:49.1]} 82... Kf5 {[%clk
0:00:15.2]} 83. Rh6 {[%clk 0:00:50.2]} 83... Rg4 {[%clk 0:00:15.7]} 84. Kf3
{[%clk 0:00:50.2]} 84... Re4 {[%clk 0:00:15.6]} 85. Rd6 {[%clk 0:00:46.9]} 85...
Ke5 {[%clk 0:00:16]} 86. Rh6 {[%clk 0:00:45.9]} 86... Kf5 {[%clk 0:00:17.6]} 87.
Rh8 {[%clk 0:00:44.5]} 87... Ke6 {[%clk 0:00:17.6]} 88. Rf8 {[%clk 0:00:41.6]}
88... Bc4 {[%clk 0:00:16.4]} 89. Rc8 {[%clk 0:00:37.7]} 89... Bb5 {[%clk
0:00:17.2]} 90. Rb8 {[%clk 0:00:38.5]} 90... Kf5 {[%clk 0:00:17.4]} 91. Rf8+
{[%clk 0:00:37.9]} 91... Kg6 {[%clk 0:00:18.5]} 92. Bd4 {[%clk 0:00:38.1]} 92...
Be2+ {[%clk 0:00:18.3]} 93. Kg3 {[%clk 0:00:39.3]} 93... Bb5 {[%clk 0:00:20.2]}
94. Rf2 {[%clk 0:00:38.7]} 94... Re1 {[%clk 0:00:20.2]} 95. Kf4 {[%clk
0:00:37.2]} 95... Rf1 {[%clk 0:00:20.6]} 96. Rxf1 {[%clk 0:00:35.4]} 96... Bxf1
{[%clk 0:00:22.5]} 97. Ke5 {[%clk 0:00:37]} 97... Bb5 {[%clk 0:00:24]} 98. Kd6
{[%clk 0:00:38.5]} 98... Kf5 {[%clk 0:00:25.6]} 1/2-1/2

[Event "*** Titled Tuesday 3|2 Blitz"]
[Site "Chess.com"]
[Date "2015.12.01"]
[Round "6"]
[White "jefferyx"]
[Black "MMSANCHEZ"]
[Result "1-0"]
[WhiteElo "2551"]
[BlackElo "2321"]
[TimeControl "180+2"]
[EndTime "18:08:25 PST"]
[Termination "jefferyx won by resignation"]

1. b4 {[%clk 0:03:01.6]} 1... c6 {[%clk 0:02:57.5]} 2. e3 {[%clk 0:03:02.2]}
2... Qb6 {[%clk 0:02:54.9]} 3. a3 {[%clk 0:03:03]} 3... a5 {[%clk 0:02:54.8]} 4.
Bb2 {[%clk 0:03:04.5]} 4... axb4 {[%clk 0:02:55.1]} 5. Bd4 {[%clk 0:03:06.3]}
5... c5 {[%clk 0:02:53.3]} 6. Bxc5 {[%clk 0:03:07]} 6... Qc7 {[%clk 0:02:40.6]}
7. Bxb4 {[%clk 0:03:06.3]} 7... Nc6 {[%clk 0:02:41.5]} 8. Bc3 {[%clk 0:03:05.4]}
8... e6 {[%clk 0:02:42.4]} 9. Nf3 {[%clk 0:03:06.1]} 9... d5 {[%clk 0:02:43.5]}
10. Bb2 {[%clk 0:03:02.3]} 10... Nf6 {[%clk 0:02:42.6]} 11. Nc3 {[%clk
0:03:03.2]} 11... Be7 {[%clk 0:02:39.2]} 12. Nb5 {[%clk 0:03:04]} 12... Qb6
{[%clk 0:02:40.3]} 13. Rb1 {[%clk 0:03:05.2]} 13... Bd7 {[%clk 0:02:36.2]} 14.
Bxf6 {[%clk 0:03:02.8]} 1-0

[Event "*** Titled Tuesday 3|2 Blitz"]
[Site "Chess.com"]
[Date "2015.12.01"]
[Round "6"]
[White "jcibarra"]
[Black "cheese111"]
[Result "1-0"]
[WhiteElo "2516"]
[BlackElo "2213"]
[TimeControl "180+2"]
[EndTime "18:12:58 PST"]
[Termination "jcibarra won by resignation"]

1. e4 {[%clk 0:03:01.9]} 1... d5 {[%clk 0:02:56.3]} 2. exd5 {[%clk 0:03:02.3]}
2... Nf6 {[%clk 0:02:57.4]} 3. Be2 {[%clk 0:03:03.1]} 3... Nxd5 {[%clk
0:02:52.3]} 4. d4 {[%clk 0:03:04.3]} 4... c6 {[%clk 0:02:51.2]} 5. Nf3 {[%clk
0:03:04]} 5... Bf5 {[%clk 0:02:47.4]} 6. O-O {[%clk 0:03:05.1]} 6... e6 {[%clk
0:02:47.8]} 7. a3 {[%clk 0:03:05.8]} 7... Qc7 {[%clk 0:02:47.6]} 8. Re1 {[%clk
0:03:05.5]} 8... Be7 {[%clk 0:02:47.3]} 9. c4 {[%clk 0:03:06.2]} 9... Nf6 {[%clk
0:02:44.3]} 10. Nc3 {[%clk 0:03:06.7]} 10... O-O {[%clk 0:02:45]} 11. h3 {[%clk
0:03:08.1]} 11... Nbd7 {[%clk 0:02:45.3]} 12. Be3 {[%clk 0:03:09.2]} 12... Rfd8
{[%clk 0:02:39.7]} 13. b4 {[%clk 0:03:07.9]} 13... a5 {[%clk 0:02:37.3]} 14. Qb3
{[%clk 0:03:04.5]} 14... axb4 {[%clk 0:02:03.4]} 15. axb4 {[%clk 0:03:06.4]}
15... Qb6 {[%clk 0:02:03.3]} 16. c5 {[%clk 0:03:01.3]} 16... Qc7 {[%clk
0:02:02.2]} 17. b5 {[%clk 0:03:01.9]} 17... b6 {[%clk 0:00:58.8]} 18. bxc6
{[%clk 0:03:00.6]} 18... Qxc6 {[%clk 0:01:00.7]} 19. Bb5 {[%clk 0:02:57.5]}
19... Qc7 {[%clk 0:01:01.7]} 20. c6 {[%clk 0:02:55.6]} 20... Rxa1 {[%clk
0:00:35.4]} 21. Rxa1 {[%clk 0:02:53.6]} 21... Nf8 {[%clk 0:00:27.2]} 22. Ra6
{[%clk 0:02:45]} 22... Nd5 {[%clk 0:00:21.1]} 23. Nxd5 {[%clk 0:02:45.6]} 23...
Rxd5 {[%clk 0:00:23]} 24. Bc4 {[%clk 0:02:43.2]} 24... Rd6 {[%clk 0:00:24.1]}
25. Qxb6 {[%clk 0:02:39.9]} 25... Qxb6 {[%clk 0:00:21.5]} 26. Rxb6 {[%clk
0:02:41.8]} 26... Bd8 {[%clk 0:00:16.8]} 27. Ra6 {[%clk 0:02:35.2]} 27... Be4
{[%clk 0:00:16.1]} 28. Bb5 {[%clk 0:02:30.1]} 28... f6 {[%clk 0:00:16.8]} 29.
Nd2 {[%clk 0:02:27.5]} 29... Bg6 {[%clk 0:00:09]} 30. Ra8 {[%clk 0:02:20.7]}
30... Kf7 {[%clk 0:00:08.1]} 31. Rxd8 {[%clk 0:01:59.2]} 31... Rxd8 {[%clk
0:00:08.8]} 32. Ba6 {[%clk 0:02:00.3]} 1-0

[Event "*** Titled Tuesday 3|2 Blitz"]
[Site "Chess.com"]
[Date "2015.12.01"]
[Round "6"]
[White "ntmh281"]
[Black "the_drake"]
[Result "0-1"]
[WhiteElo "2110"]
[BlackElo "2010"]
[TimeControl "180+2"]
[EndTime "18:12:59 PST"]
[Termination "the_drake won on time"]

1. d4 {[%clk 0:02:57.2]} 1... d5 {[%clk 0:02:59.8]} 2. Nf3 {[%clk 0:02:58.3]}
2... Nf6 {[%clk 0:03:01.2]} 3. c4 {[%clk 0:02:56.3]} 3... e6 {[%clk 0:03:02.1]}
4. Nc3 {[%clk 0:02:51.3]} 4... Nbd7 {[%clk 0:03:01.4]} 5. Bg5 {[%clk 0:02:41.2]}
5... Bb4 {[%clk 0:03:01.5]} 6. e3 {[%clk 0:02:37.3]} 6... c5 {[%clk 0:03:01.5]}
7. cxd5 {[%clk 0:02:37.7]} 7... exd5 {[%clk 0:03:00.8]} 8. Bd3 {[%clk
0:02:35.1]} 8... Qa5 {[%clk 0:03:01.1]} 9. O-O {[%clk 0:02:24.2]} 9... c4 {[%clk
0:03:01]} 10. Be2 {[%clk 0:02:20.1]} 10... Bxc3 {[%clk 0:02:59.8]} 11. bxc3
{[%clk 0:02:20.5]} 11... Qxc3 {[%clk 0:03:00]} 12. Qa4 {[%clk 0:02:14.6]} 12...
a6 {[%clk 0:02:31.6]} 13. Rfc1 {[%clk 0:02:08.1]} 13... b5 {[%clk 0:02:31.3]}
14. Rxc3 {[%clk 0:01:49.6]} 14... bxa4 {[%clk 0:02:31.7]} 15. Bd1 {[%clk
0:01:50]} 15... Ne4 {[%clk 0:02:29.2]} 16. Ra3 {[%clk 0:01:47.7]} 16... Nb6
{[%clk 0:02:16.7]} 17. Bf4 {[%clk 0:01:38.8]} 17... Bd7 {[%clk 0:02:13.4]} 18.
Rb1 {[%clk 0:01:38.7]} 18... Bb5 {[%clk 0:02:09.2]} 19. Bc7 {[%clk 0:01:31.5]}
19... Nc8 {[%clk 0:02:05.6]} 20. Bc2 {[%clk 0:01:10.3]} 20... Kd7 {[%clk
0:02:01.3]} 21. Bf4 {[%clk 0:01:08.7]} 21... f6 {[%clk 0:01:56.7]} 22. h4 {[%clk
0:00:52.7]} 22... Ncd6 {[%clk 0:01:54.8]} 23. Ne1 {[%clk 0:00:49.4]} 23... g5
{[%clk 0:01:53.3]} 24. hxg5 {[%clk 0:00:49.3]} 24... fxg5 {[%clk 0:01:55.2]} 25.
Be5 {[%clk 0:00:49.9]} 25... Rhc8 {[%clk 0:01:48.8]} 26. f3 {[%clk 0:00:45.5]}
26... Nd2 {[%clk 0:01:49.1]} 27. Rd1 {[%clk 0:00:44.6]} 27... c3 {[%clk
0:01:49.4]} 0-1

[Event "*** Titled Tuesday 3|2 Blitz"]
[Site "Chess.com"]
[Date "2015.12.01"]
[Round "6"]
[White "HansCoolNiemann"]
[Black "Colombiano07"]
[Result "1-0"]
[WhiteElo "2206"]
[BlackElo "2115"]
[TimeControl "180+2"]
[EndTime "18:13:03 PST"]
[Termination "HansCoolNiemann won by resignation"]

1. d4 {[%clk 0:03:01.9]} 1... g6 {[%clk 0:03:01.9]} 2. e4 {[%clk 0:02:56.6]}
2... Bg7 {[%clk 0:02:46.6]} 3. Nc3 {[%clk 0:02:55]} 3... c5 {[%clk 0:02:29.5]}
4. dxc5 {[%clk 0:02:54.9]} 4... Bxc3+ {[%clk 0:02:21.7]} 5. bxc3 {[%clk
0:02:54.7]} 5... Qa5 {[%clk 0:02:23.6]} 6. Qd4 {[%clk 0:02:45.8]} 6... Nf6
{[%clk 0:02:23.4]} 7. Qb4 {[%clk 0:02:42.9]} 7... Nc6 {[%clk 0:02:24.2]} 8. Qxa5
{[%clk 0:02:38.8]} 8... Nxa5 {[%clk 0:02:26.1]} 9. f3 {[%clk 0:02:37.7]} 9...
O-O {[%clk 0:02:27.1]} 10. Be3 {[%clk 0:02:32.7]} 10... d6 {[%clk 0:02:22.9]}
11. cxd6 {[%clk 0:02:32.3]} 11... exd6 {[%clk 0:02:24.8]} 12. Bd4 {[%clk
0:02:33.4]} 12... Nd7 {[%clk 0:02:21.9]} 13. Bd3 {[%clk 0:02:28.2]} 13... b6
{[%clk 0:02:19.5]} 14. Ne2 {[%clk 0:02:26.2]} 14... Nc5 {[%clk 0:01:57]} 15. O-O
{[%clk 0:02:22.8]} 15... Be6 {[%clk 0:01:53.2]} 16. Nf4 {[%clk 0:02:15.1]} 16...
Rac8 {[%clk 0:01:52.8]} 17. h4 {[%clk 0:02:08.6]} 17... Na4 {[%clk 0:01:44.5]}
18. h5 {[%clk 0:02:02.2]} 18... Nxc3 {[%clk 0:01:43.7]} 19. hxg6 {[%clk
0:02:01.9]} 19... hxg6 {[%clk 0:01:42.7]} 20. Kf2 {[%clk 0:02:00]} 20... Bd7
{[%clk 0:00:46.9]} 21. Rh1 {[%clk 0:01:58.5]} 21... f6 {[%clk 0:00:47.5]} 22.
Rh6 {[%clk 0:01:53.6]} 22... Kf7 {[%clk 0:00:44.1]} 23. Rh7+ {[%clk 0:01:50.9]}
23... Ke8 {[%clk 0:00:42.2]} 24. Nxg6 {[%clk 0:01:44.9]} 24... Rg8 {[%clk
0:00:25.8]} 25. Ne7 {[%clk 0:01:42.1]} 25... Rf8 {[%clk 0:00:10.4]} 26. Nxc8
{[%clk 0:01:32.3]} 26... Bxc8 {[%clk 0:00:12.3]} 27. Bxc3 {[%clk 0:01:31.6]} 1-0

[Event "*** Titled Tuesday 3|2 Blitz"]
[Site "Chess.com"]
[Date "2015.12.01"]
[Round "6"]
[White "DanielNaroditsky"]
[Black "MisaPap"]
[Result "1-0"]
[WhiteElo "2557"]
[BlackElo "2403"]
[TimeControl "180+2"]
[EndTime "18:13:44 PST"]
[Termination "DanielNaroditsky won by resignation"]

1. d4 {[%clk 0:03:01.9]} 1... Nf6 {[%clk 0:02:59.8]} 2. c4 {[%clk 0:03:03]} 2...
c5 {[%clk 0:03:00.7]} 3. e3 {[%clk 0:03:03.3]} 3... e6 {[%clk 0:02:55.8]} 4. Nc3
{[%clk 0:03:03.7]} 4... a6 {[%clk 0:02:55.4]} 5. Nf3 {[%clk 0:03:04.5]} 5... d5
{[%clk 0:02:54.8]} 6. a3 {[%clk 0:03:02.7]} 6... Nc6 {[%clk 0:02:54.7]} 7. dxc5
{[%clk 0:03:02.3]} 7... Bxc5 {[%clk 0:02:54.4]} 8. b4 {[%clk 0:03:03.1]} 8...
Bd6 {[%clk 0:02:52.4]} 9. Bb2 {[%clk 0:03:00.7]} 9... O-O {[%clk 0:02:52.2]} 10.
cxd5 {[%clk 0:02:59.2]} 10... exd5 {[%clk 0:02:52.7]} 11. Be2 {[%clk 0:02:56.2]}
11... Re8 {[%clk 0:02:51.8]} 12. O-O {[%clk 0:02:56.8]} 12... Be6 {[%clk
0:02:42.5]} 13. Rc1 {[%clk 0:02:47.8]} 13... Rc8 {[%clk 0:02:42.1]} 14. g3
{[%clk 0:02:46.2]} 14... Bh3 {[%clk 0:02:19.6]} 15. Re1 {[%clk 0:02:46.7]} 15...
Bb8 {[%clk 0:02:15.1]} 16. Na4 {[%clk 0:02:07]} 16... Ba7 {[%clk 0:01:56.2]} 17.
Nc5 {[%clk 0:02:07.6]} 17... Qe7 {[%clk 0:01:53.7]} 18. Nd4 {[%clk 0:01:25.4]}
18... Ne5 {[%clk 0:01:48]} 19. f4 {[%clk 0:01:12.2]} 19... Nc6 {[%clk
0:01:23.1]} 20. Bf3 {[%clk 0:01:11.7]} 20... Ne4 {[%clk 0:01:14.8]} 21. Bxe4
{[%clk 0:01:06.1]} 21... dxe4 {[%clk 0:01:14.7]} 22. Qh5 {[%clk 0:01:07.3]}
22... Nxd4 {[%clk 0:00:57]} 23. Bxd4 {[%clk 0:01:08.2]} 23... Bxc5 {[%clk
0:00:49.5]} 24. Qxh3 {[%clk 0:01:08]} 24... Bxd4 {[%clk 0:00:41.7]} 25. Rxc8
{[%clk 0:01:07.8]} 25... Bb6 {[%clk 0:00:35.4]} 26. Qf5 {[%clk 0:00:57.7]} 26...
g6 {[%clk 0:00:33.5]} 27. Rxe8+ {[%clk 0:00:58.4]} 27... Qxe8 {[%clk 0:00:34.3]}
28. Qd5 {[%clk 0:00:58.3]} 28... Qe7 {[%clk 0:00:28.2]} 29. Kf2 {[%clk
0:00:59.5]} 29... h5 {[%clk 0:00:24]} 30. Rc1 {[%clk 0:00:56.6]} 30... Qf6
{[%clk 0:00:23.4]} 31. Rc8+ {[%clk 0:00:56.8]} 31... Kg7 {[%clk 0:00:23.1]} 32.
Qe5 {[%clk 0:00:56.8]} 32... Qxe5 {[%clk 0:00:20.7]} 33. fxe5 {[%clk 0:00:57.6]}
33... h4 {[%clk 0:00:22.2]} 34. gxh4 {[%clk 0:00:58.3]} 1-0

[Event "*** Titled Tuesday 3|2 Blitz"]
[Site "Chess.com"]
[Date "2015.12.01"]
[Round "6"]
[White "Fandorine"]
[Black "Tirantes"]
[Result "1-0"]
[WhiteElo "2537"]
[BlackElo "2260"]
[TimeControl "180+2"]
[EndTime "18:14:03 PST"]
[Termination "Fandorine won by resignation"]

1. e4 {[%clk 0:03:01.9]} 1... c6 {[%clk 0:02:59.6]} 2. d3 {[%clk 0:02:59.2]}
2... d5 {[%clk 0:02:57.6]} 3. Nd2 {[%clk 0:03:00.8]} 3... g6 {[%clk 0:02:55.5]}
4. Ngf3 {[%clk 0:03:01.1]} 4... Bg7 {[%clk 0:02:55.7]} 5. g3 {[%clk 0:03:02.7]}
5... e5 {[%clk 0:02:53.6]} 6. Bg2 {[%clk 0:03:03.7]} 6... Ne7 {[%clk 0:02:54]}
7. O-O {[%clk 0:03:04.9]} 7... O-O {[%clk 0:02:54.2]} 8. Re1 {[%clk 0:03:06.1]}
8... Nd7 {[%clk 0:02:52.1]} 9. b3 {[%clk 0:02:57.9]} 9... Qc7 {[%clk 0:02:48.4]}
10. Bb2 {[%clk 0:02:58.4]} 10... d4 {[%clk 0:02:44.6]} 11. c3 {[%clk 0:02:55.9]}
11... dxc3 {[%clk 0:02:40.5]} 12. Bxc3 {[%clk 0:02:56.7]} 12... Rd8 {[%clk
0:02:35.7]} 13. Rc1 {[%clk 0:02:43.5]} 13... b6 {[%clk 0:01:49.9]} 14. Qc2
{[%clk 0:02:36]} 14... Ba6 {[%clk 0:01:47.6]} 15. b4 {[%clk 0:02:29.1]} 15...
Nf8 {[%clk 0:01:38.4]} 16. Qb2 {[%clk 0:02:17.7]} 16... Rxd3 {[%clk 0:01:26.9]}
17. Bf1 {[%clk 0:02:17.1]} 17... f6 {[%clk 0:01:15.2]} 18. Bxd3 {[%clk
0:02:10.1]} 18... Bxd3 {[%clk 0:01:15.5]} 19. Bxe5 {[%clk 0:02:09.3]} 19... fxe5
{[%clk 0:00:59.4]} 20. Qb3+ {[%clk 0:02:10.2]} 20... Kh8 {[%clk 0:00:59.4]} 21.
Qxd3 {[%clk 0:02:11.8]} 21... Ne6 {[%clk 0:00:58.1]} 22. Qc4 {[%clk 0:02:09.9]}
22... Qd7 {[%clk 0:00:48.6]} 23. Rcd1 {[%clk 0:02:01.9]} 23... c5 {[%clk
0:00:38.1]} 24. bxc5 {[%clk 0:01:59.4]} 24... bxc5 {[%clk 0:00:38.3]} 25. Nb3
{[%clk 0:02:00.1]} 25... Nd4 {[%clk 0:00:37.6]} 26. Ng5 {[%clk 0:01:29.7]} 26...
h6 {[%clk 0:00:28.8]} 27. Nxc5 {[%clk 0:01:22.9]} 27... Qc6 {[%clk 0:00:16.8]}
28. Nf7+ {[%clk 0:01:22.5]} 28... Kh7 {[%clk 0:00:16.9]} 29. Nxe5 {[%clk
0:01:22.5]} 29... Bxe5 {[%clk 0:00:12]} 30. Rxd4 {[%clk 0:01:24.1]} 30... Bxd4
{[%clk 0:00:10.4]} 31. Qxd4 {[%clk 0:01:25.7]} 31... Rf8 {[%clk 0:00:08.4]} 32.
Rc1 {[%clk 0:01:20.4]} 32... Qf6 {[%clk 0:00:06.5]} 33. Qxf6 {[%clk 0:01:20.6]}
33... Rxf6 {[%clk 0:00:07.3]} 34. Nd3 {[%clk 0:01:22]} 34... Kg8 {[%clk
0:00:07.1]} 35. Rc7 {[%clk 0:01:22.6]} 35... Re6 {[%clk 0:00:07.4]} 36. Nc5
{[%clk 0:01:18.8]} 36... Re5 {[%clk 0:00:05.2]} 37. f4 {[%clk 0:01:18.8]} 1-0

[Event "*** Titled Tuesday 3|2 Blitz"]
[Site "Chess.com"]
[Date "2015.12.01"]
[Round "6"]
[White "flubs"]
[Black "oskariot"]
[Result "1-0"]
[WhiteElo "2178"]
[BlackElo "2228"]
[TimeControl "180+2"]
[EndTime "18:14:13 PST"]
[Termination "flubs won by resignation"]

1. d4 {[%clk 0:03:01.9]} 1... Nf6 {[%clk 0:03:00]} 2. c4 {[%clk 0:03:02.3]} 2...
c5 {[%clk 0:03:01.6]} 3. Nf3 {[%clk 0:03:02.9]} 3... cxd4 {[%clk 0:03:01.6]} 4.
Nxd4 {[%clk 0:03:04.1]} 4... g6 {[%clk 0:03:03.5]} 5. Nc3 {[%clk 0:03:04.6]}
5... Bg7 {[%clk 0:03:05.2]} 6. g3 {[%clk 0:03:06.2]} 6... Nc6 {[%clk 0:03:04.5]}
7. Bg2 {[%clk 0:03:07.6]} 7... O-O {[%clk 0:03:05.8]} 8. O-O {[%clk 0:03:08.8]}
8... Qa5 {[%clk 0:03:07.4]} 9. Ncb5 {[%clk 0:02:33.1]} 9... a6 {[%clk
0:02:58.8]} 10. Bd2 {[%clk 0:02:32.4]} 10... Qb6 {[%clk 0:02:45.5]} 11. Nxc6
{[%clk 0:02:28.8]} 11... dxc6 {[%clk 0:02:34.7]} 12. Nc3 {[%clk 0:02:28.8]}
12... Qxb2 {[%clk 0:02:28.2]} 13. Rb1 {[%clk 0:02:27.5]} 13... Qa3 {[%clk
0:02:28.5]} 14. Rb3 {[%clk 0:02:22.5]} 14... Qc5 {[%clk 0:02:22.8]} 15. Na4
{[%clk 0:02:17.6]} 15... Qh5 {[%clk 0:02:23.2]} 16. Nb6 {[%clk 0:02:15.6]} 16...
Rb8 {[%clk 0:02:08.8]} 17. Bb4 {[%clk 0:01:37.9]} 17... Bh3 {[%clk 0:01:42.2]}
18. Bxe7 {[%clk 0:01:32.7]} 18... Ng4 {[%clk 0:01:37]} 19. f3 {[%clk 0:01:10]}
19... Bxg2 {[%clk 0:01:02.7]} 20. fxg4 {[%clk 0:01:10.5]} 20... Qh3 {[%clk
0:01:03.9]} 21. Bxf8 {[%clk 0:01:08.7]} 21... Bxf1 {[%clk 0:00:42.7]} 22. Qxf1
{[%clk 0:01:08.2]} 22... Qxf1+ {[%clk 0:00:42.9]} 23. Kxf1 {[%clk 0:01:09.7]}
23... Bxf8 {[%clk 0:00:30.9]} 24. Nd7 {[%clk 0:01:10.2]} 24... Rd8 {[%clk
0:00:32.5]} 25. Rxb7 {[%clk 0:01:07.1]} 25... Bd6 {[%clk 0:00:25.8]} 26. c5
{[%clk 0:01:07.2]} 26... Be7 {[%clk 0:00:22.2]} 27. e4 {[%clk 0:00:55.9]} 27...
f6 {[%clk 0:00:16.1]} 28. Ke2 {[%clk 0:00:49.6]} 28... Kf7 {[%clk 0:00:12.9]}
29. e5 {[%clk 0:00:50.7]} 29... fxe5 {[%clk 0:00:06.4]} 30. Nxe5+ {[%clk
0:00:50.8]} 30... Ke6 {[%clk 0:00:05.3]} 31. Rxe7+ {[%clk 0:00:51.9]} 31... Kxe7
{[%clk 0:00:06]} 32. Nxc6+ {[%clk 0:00:53.6]} 32... Kd7 {[%clk 0:00:07.9]} 33.
Nxd8 {[%clk 0:00:55.2]} 33... Kxd8 {[%clk 0:00:08.1]} 34. Kd3 {[%clk 0:00:56.8]}
34... Kc7 {[%clk 0:00:10]} 35. Kc4 {[%clk 0:00:58]} 35... Kc6 {[%clk 0:00:11.9]}
36. h4 {[%clk 0:00:59]} 1-0